Cogmind - Beta 16.1 *** ADVENTURER MODE // 2026.02.26 @ 19:08:00 Player: Zable Result: Self-destructed Performance ------------- Evolutions (1) 500 Regions Visited (2) 400 Robots Destroyed (16) 80 Value Destroyed (243) 243 Prototype IDs (1) 20 Alien Tech Used (0) 0 Bonus (0) 0 TOTAL SCORE: 1243 Bonus ------- None Cogmind --------- Core Integrity 400/400 Matter 300/300 Energy 250/250 System Corruption 0% Temperature Cool (0) Movement Walking (190) Ox1 Location -9/Materials Parts ------- > --- POWER (1) -------- Ion Engine > --- PROPULSION (2) --- Aluminum Leg Aluminum Leg > --- UTILITY (4) ------ Large Storage Unit Seismic Detector Reaction Control System Medium Armor Plating > --- WEAPON (2) ------- Advanced Beam Rifle Advanced Beam Rifle > --- INVENTORY (15) --- Light Ion Engine Aluminum Leg Wheel Wheel High-capacity Matter Pod (200) EM Pulse Gun Advanced Beam Rifle Advanced Beam Rifle Assault Rifle Light Assault Rifle Grenade Launcher Peak State ------------ > --- POWER ------------ Ion Engine > --- PROPULSION ------- Aluminum Leg Aluminum Leg > --- UTILITY ---------- Large Storage Unit Seismic Detector Reaction Control System Medium Armor Plating > --- WEAPON ----------- Advanced Beam Rifle Advanced Beam Rifle > --- INVENTORY -------- Light Ion Engine Aluminum Leg Wheel Wheel High-capacity Matter Pod EM Pulse Gun Advanced Beam Rifle Advanced Beam Rifle Assault Rifle Light Assault Rifle Grenade Launcher [Rating: 19] Favorites ----------- Power Ion Engine Engine Ion Engine Propulsion Aluminum Leg Leg Aluminum Leg Utility Seismic Detector Device Seismic Detector Storage Small Storage Unit Protection Medium Armor Plating Weapon Advanced Beam Rifle Energy Gun Advanced Beam Rifle Ballistic Gun Light Assault Rifle Build | -11 -10 -9 ------- Run | Yrd Mat Mat Slots Evolved 2 | . . 2 Power . | . . . Propulsion . | . . . Utility 2 | . . 2 Weapon . | . . . Parts Attached 6 | 1 1 4 Power . | . . . Engine . | . . . Core . | . . . Reactor . | . . . Propulsion . | . . . Treads . | . . . Leg . | . . . Wheel . | . . . Hover . | . . . Flight . | . . . Utility 4 | 1 1 2 Device 2 | 1 . 1 Storage 1 | . 1 . Processor . | . . . Hackware . | . . . Protection 1 | . . 1 Artifact . | . . . Weapon 2 | . . 2 Energy Gun 2 | . . 2 Energy Cannon . | . . . Ballistic Gun . | . . . Ballistic Cannon . | . . . Launcher . | . . . Special Weapon . | . . . Impact Weapon . | . . . Slashing Weapon . | . . . Piercing Weapon . | . . . Special Melee Weapon . | . . . Unidentified Prototypes 1 | . . 1 Parts Lost . | . . . Power . | . . . Propulsion . | . . . Utility . | . . . Weapon . | . . . Highest Loss Streak . | . . . To Critical Strikes . | . . . Average Backups 8 | 6 7 10 Power 1 | 1 1 1 Propulsion 3 | 4 4 3 Utility . | . . 1 Weapon 3 | 1 1 5 Tool/Special . | . . . Unused Backups 18 | 6 2 10 Power 2 | 1 . 1 Propulsion 7 | 2 1 4 Utility 3 | 1 1 1 Weapon 6 | 2 . 4 Tool/Special . | . . . Average Slot Usage (%) 96 | . 100 93 Engine 12 | . 14 11 Leg 25 | . 28 22 Device 16 | . 14 19 Storage 12 | . 14 11 Protection 3 | . . 7 Energy Gun 17 | . 14 21 Ballistic Gun 7 | . 14 1 Peak Build Rating 19 | 7 7 19 Average Rating 11 | 6 7 17 On Entrance 6 | 6 7 7 Avg Prop Armor Cover (%) . | . . . Naked Turns . | . . . Heaviest Build 38 | 14 29 38 Greatest Support 20 | 20 20 20 Greatest Overweight (x) 1 | . 1 1 Average Overweight (x) . | . . 1 Largest Inventory Capacity 15 | 8 15 15 Average Capacity 11 | 8 9 15 Most Carried 11 | 6 8 11 Average Carried 8 | 6 7 10 Final Capacity 15 | 8 15 15 Final Carried 11 | 6 8 11 Class Distribution -------------------- 100% | Mutant Dominant Class ---------------- Mutant | -10/Materials Mutant | -9/Materials Resources | -11 -10 -9 ----------- Run | Yrd Mat Mat Matter Collected 498 | 206 119 173 Remotely . | . . . Salvage Created 433 | 99 118 216 Parts 31 | 9 15 7 Haulers Intercepted . | . . . Recyclers Shooed . | . . . Parts Field Recycled . | . . . Retrieved Matter . | . . . Parts Self-Destructed . | . . . Prevented . | . . . Parts Restored . | . . . Kills | -11 -10 -9 ------- Run | Yrd Mat Mat Combat Hostiles Destroyed 5 | . 2 3 Guns 5 | . 2 3 Classes Destroyed 7 | 1 3 3 Builder 2 | . 2 . Tunneler 5 | 4 1 . Recycler 1 | . . 1 Watcher 3 | . 1 2 Swarmer 2 | . 2 . Grunt 2 | . . 2 Brawler 1 | . . 1 Best Kill Streak 3 | 2 3 3 Combat Bots Only 3 | . 2 3 Max Kills in Single Turn 1 | 1 1 1 Gunslinging . | . . . Exploded . | . . . Melee . | . . . Uniques/NPCs Destroyed . | . . . Combat | -11 -10 -9 -------- Run | Yrd Mat Mat Hostile Shots Fired 22 | . 20 2 Missed 8 | . 6 2 Hits 14 | . 14 . Projectile 14 | . 14 . Critical Strikes 1 | . 1 . Damage Taken 149 | . 83 66 Core 10 | . 10 . Absorbed by Shields . | . . . Ignored by Resistances 45 | . 28 17 Core Remaining (%) 98 | 100 96 . Volleys Fired 35 | 15 10 10 Largest 2 | 2 2 2 Hottest 122 | 60 60 122 Shots Fired 70 | 30 20 20 Gun 70 | 30 20 20 Cannon . | . . . Launcher . | . . . Special . | . . . Kinetic 25 | 15 10 . Thermal 20 | . . 20 Explosive . | . . . Electromagnetic 25 | 15 10 . Robot Hit Streak 22 | 14 22 11 Robot Miss Streak 2 | 1 2 1 Penetration Max . | . . . Secondary Targets 3 | . 1 2 Max Gunslinging Chain 1 | . 1 1 Shots Hit Robots 52 | 23 15 14 Core Hits 19 | 6 7 6 Critical Kills 1 | . 1 . Critical Parts Destroyed . | . . . Critical Strikes 5 | 2 1 2 Burn 2 | . . 2 Destroy 1 | . 1 . Corrupt 2 | 2 . . Melee Attacks . | . . . Impact . | . . . Slashing . | . . . Piercing . | . . . Sneak Attacks . | . . . Combat Hostiles . | . . . Follow-up Attacks . | . . . Damage Inflicted 813 | 247 205 361 Guns 672 | 247 165 260 Cannons . | . . . Explosions 141 | . 40 101 Melee . | . . . Ramming . | . . . Kinetic 129 | 79 50 . Thermal 300 | . 40 260 Explosive 101 | . . 101 Electromagnetic 283 | 168 115 . Impact . | . . . Slashing . | . . . Piercing . | . . . Highest Corruption . | . . . Average Corruption . | . . . Corruption Purged . | . . . Corruption Blocked . | . . . Overload Shots . | . . . Overflow Damage . | . . . Projectiles . | . . . Explosions . | . . . Melee . | . . . Knockbacks . | . . . Impact . | . . . Kinetic . | . . . Secondary . | . . . Self-Inflicted Damage 66 | . . 66 Shots 1 | . . 1 Rammed . | . . . Targets Rammed . | . . . Kicked . | . . . Crushed . | . . . Highest Temperature 240 | 60 40 240 Average Temperature 52 | 24 20 85 Received Heat Transfer . | . . . Siege Activations . | . . . Martial Activations . | . . . Shielding Activations . | . . . Robots Disrupted . | . . . Combat Hostiles . | . . . Robots Corrupted . | . . . Combat Hostiles . | . . . Parts Fried 3 | 3 . . Impact Corruptions . | . . . Robots Melted . | . . . Combat Hostiles . | . . . Parts Melted 1 | . . 1 Heat Transferred 679 | . 50 629 Parts Sabotaged . | . . . Parts Stolen . | . . . Parts Stripped . | . . . Power Chain Reactions 1 | . 1 . Alert | -11 -10 -9 ------- Run | Yrd Mat Mat Maximum Alert Level . | . . . Low Security (%) 100 | 100 100 100 Level 1 . | . . . Level 2 . | . . . Level 3 . | . . . Level 4 . | . . . Level 5 . | . . . High Security . | . . . Max Security . | . . . Peak Influence 114 | 5 52 114 Initial . | . . . Average 20 | 1 15 31 Influence Increases 245 | 20 77 148 Destroy 0b10 Robot/C 100 | . 40 60 Destroy 0b10 Robot/NC 55 | 20 20 15 Destroy Leader 26 | . 12 14 Disable Machine 18 | . . 18 Destroy Structure 31 | . 5 26 Lose Combat Pursuer 15 | . . 15 Influence Decreases 174 | 20 77 77 Time Decay 174 | 20 77 77 Squads Dispatched . | . . . Investigation . | . . . Extermination . | . . . Reinforcement . | . . . Assault . | . . . Garrison . | . . . Intercept . | . . . Searches Triggered . | . . . Construction Impeded . | . . . Haulers Reinforced . | . . . Active Scanning Responses . | . . . Cargo Convoy Interrupts . | . . . Stealth | -11 -10 -9 --------- Run | Yrd Mat Mat Distress Signals 1 | . . 1 Communications Jammed . | . . . Distress Signals . | . . . Times Spotted 14 | . 5 9 Peak Tracking Total 5 | . 3 5 Tactical Retreats 1 | . . 1 Traps | -11 -10 -9 ------- Run | Yrd Mat Mat Traps Triggered . | . . . Indirectly . | . . . Trap Hack Attempts . | . . . Triggered . | . . . Disarmed . | . . . Reprogrammed . | . . . Reused . | . . . Traps Extracted . | . . . Installed . | . . . Triggered . | . . . Machines | -11 -10 -9 ---------- Run | Yrd Mat Mat Machines Disabled 2 | . . 2 Max in Single Turn 1 | . . 1 Machines Repaired . | . . . Machines Dismantled . | . . . Machines Sabotaged . | . . . Overloaded Fab Kills . | . . . Hacking | -11 -10 -9 --------- Run | Yrd Mat Mat Machines Accessed 1 | . 1 . Terminals 1 | . 1 . Fabricators . | . . . Repair Stations . | . . . Recycling Units . | . . . Scanalyzers . | . . . Garrison Access . | . . . Total Hacks 4 | . 4 . Successful . | . . . Failed 4 | . 4 . Catastrophic 1 | . 1 . Database Lockouts . | . . . Manual 4 | . 4 . Terminals 4 | . 4 . Fabricators . | . . . Repair Stations . | . . . Recycling Units . | . . . Scanalyzers . | . . . Garrison Access . | . . . Terminal Hacks . | . . . Fabricator Hacks . | . . . Repair Station Hacks . | . . . Recycling Unit Hacks . | . . . Scanalyzer . | . . . Garrison Access Hacks . | . . . Unauthorized Hacks . | . . . Terminals . | . . . Fabricators . | . . . Repair Stations . | . . . Recycling Units . | . . . Scanalyzers . | . . . Garrison Access . | . . . Data Cores Recovered . | . . . Used . | . . . Hacking Detections 1 | . 1 . Full Trace Events 1 | . 1 . Feedback Events . | . . . Feedback Blocked . | . . . Robot Schematics Acquired . | . . . Robots Built . | . . . Authchips . | . . . Time . | . . . Total Robot Build Rating . | . . . Part Schematics Acquired . | . . . Parts Built . | . . . Authchips . | . . . Time . | . . . Total Part Build Rating . | . . . Part Studies Acquired . | . . . Parts Repaired . | . . . Time . | . . . Parts Recycled . | . . . Recycled Matter . | . . . Retrieved Matter . | . . . Retrieved Components . | . . . Parts Scanalyzed . | . . . Part Schematics Acquired . | . . . Parts Damaged . | . . . Bothacking | -11 -10 -9 ------------ Run | Yrd Mat Mat Used RIF Installer . | . . . Robots Hacked . | . . . Non-combat . | . . . Combat . | . . . Robot Hacks Applied . | . . . Relay Couplers Released . | . . . Fabnet Peak Effective % . | . . . Robots Rewired . | . . . Allies Hacked . | . . . Hacks Repelled . | . . . Allies | -11 -10 -9 -------- Run | Yrd Mat Mat Total Allies . | . . . Largest Group . | . . . Highest-Rated Group . | . . . Highest-Rated Ally . | . . . Total Orders . | . . . Ally Attacks . | . . . Total Damage . | . . . Kills . | . . . Allies Corrupted . | . . . Allies Melted . | . . . Intel | -11 -10 -9 ------- Run | Yrd Mat Mat Active Infowar (turns) 664 | 9 332 323 Seismic 664 | 9 332 323 Robot Analysis Total . | . . . Derelict Logs Recovered . | . . . Drone Launches . | . . . Drone Recoveries . | . . . Exploration | -11 -10 -9 ------------- Run | Yrd Mat Mat Turns Passed 765 | 110 332 323 Spaces Moved 398 | 56 195 147 Core . | . . . Treads . | . . . Legs 398 | 56 195 147 Wheels . | . . . Hover . | . . . Flight . | . . . Fastest Speed 120 | 120 120 190 Average Speed 150 | 120 129 190 Slowest Speed 190 | 120 190 190 Overloaded Moves . | . . . Propulsion Burnouts . | . . . Robots Hopped . | . . . Potential Cave-ins . | . . . Cave-ins Triggered . | . . . Exploration Rate (%) 18 | 3 45 7 Regions Visited 2 Branch Regions . Pre-discovered Areas . | . . . Known Exits Taken . | . . . Unknown Exits Taken 2 | 1 1 . Scrap Searched . | . . . Spaces Dug . | . . . Terrain Destroyed 34 | . 4 30 Melee . | . . . Projectile . | . . . AOE 34 | . 4 30 Terrain Rammed . | . . . Walls Destroyed . | . . . Machines Disabled . | . . . Actions | -11 -10 -9 --------- Run | Yrd Mat Mat Total 499 | 71 259 169 Wait 50 | . 47 3 Move 396 | 55 194 147 Hop . | . . . Pick Up 8 | . 4 4 Fast Attach 3 | 1 . 2 Attach . | . . . Detach . | . . . Swap 3 | . 1 2 Drop 4 | . 3 1 Fire 35 | 15 10 10 Melee . | . . . Ram . | . . . Kick . | . . . Crush . | . . . Escape Stasis . | . . . Rewire . | . . . Trap . | . . . Miscellaneous . | . . . Route ------- -11/Scrapyard -10/Materials (discovered 2 exits: [*Mat] / [*Min]) -9/Materials History --------- Turn | Location | Event 1 | -11/Scrapyard | Discovered new exit (range 2) 111 | -11/Scrapyard | Entered Materials 183 | -10/Materials | Discovered new exit (range 9) 315 | -10/Materials | Build established: Mutant 378 | -10/Materials | Discovered new exit (range 15) 443 | -10/Materials | Entered another Materials area 443 | -9/Materials | Evolved 2 slots: Utility x2 766 | -9/Materials | Self-destructed Last Messages --------------- 00673_ Signal Interpreter tumbles out of TF Node. 00686_ Acquired 53 matter. 00690_ Acquired 42 matter. 00692_ Acquired 33 matter. 00694_ U-05 Engineer lays Concrete. 00695_ U-05 Engineer builds a Door. 00695_ U-05 Engineer lays Concrete. 00696_ U-05 Engineer builds a Wall. 00696_ U-05 Engineer lays Concrete. 00699_ U-05 Engineer builds a Wall. 00702_ U-05 Engineer lays Concrete. 00706_ U-05 Engineer builds a Wall. 00710_ U-05 Engineer lays Concrete. 00712_ U-05 Engineer builds a Wall. 00717_ Acquired 17 matter. 00719_ U-05 Engineer builds a Wall. 00727_ K-01 Serf collects debris. 00728_ Destroyed Lgt. Ion Engine. 00731_ K-01 Serf collects debris. 00736_ W-16 Scout destroyed. Map ----- +----------------------------------------------------+ | ?????????????????????????????????????????????????? | | ?????????????????????????????????????????????????? | | ?????????????????????????????????????????????????? | | ?????????????????????????????????????????????????? | | ?????????????????????????????????????????????????? | | ?????????????????????????????????????????????????? | | ?????????????????????????????????????????????????? | | ?????????????????????????????????????????????????? | | ?????????????????????????????????????????????????? | | ?????????????????????????????????????????????????? | | ????????????????????????? ???????????????????????? | | ????????????????????????? ???????????????????????? | | ????????????????????????? ???????????????????????? | | ?????????????????????????u???????????????????????? | | ????????????????????????? ???????????????????????? | | ????????????????????????? ???????????????????????? | | ?????????????????????????u???????????????????????? | | ????????????????????????# #??????????????????????? | | ????????????????????????# #??????????????????????? | | ????????????????????????# #??????????????????????? | | ????????????????????????# #??????????????????????? | | ????????????????????????# #??????????????????????? | | ????????????????????????# +??????????????????????? | | ????????????????????????# #??????????????????????? | | ????????????????????????# #??????????????????????? | | ????????????????????????#@########???????????????? | | ????????????????????##### # #???????????????? | | ??????????????????##### # # """ #???????????????? | | ??????????????????#######+# """ #???????????????? | | ?????????????????### # """ #???????????????? | | ?????????????????# # # #???????????????? | | ?????????????????# # # ?????????????????? | | ?????????????????# # %###+###????????????????? | | ?????????????????# #% # #????????????????? | | ?????????????####### # ! #????????????????? | | ?????????????# # + !!#????????????????? | | ?????????????# # # #????????????????? | | ?????????????# """ # # ########?????????? | | ???????????????""??# """ ###[###!!!! #?????????? | | ???????????????????# """ #?# #?# !!! #?????????? | | ???????????????????# """ #?# #?# #?????????? | | ???????????????????# #?#*#?# ########??? | | ???????????????????########## #?# #??? | | ???????????????????# ! ##=#?# +??? | | ???????????????????# ##!#?# #??? | | ???????????????????# ## #?# #########+#??? | | ???????????????????# """"" ## ### #????????????? | | ???????????????????# """"" # #????????????? | | ???????????????????# """"" + #????????????? | | ???????????????????# # +????????????? | +----------------------------------------------------+ Best States ------------- Heat Dissipation 28 Energy Generation 10 Energy Capacity 250 Matter Stores 300 Matter Capacity 300 Sight Range 16 Terrain Scan Density 10 Armor Coverage 225 Resistance: KI 20 Resistance: TH 20 Resistance: EX 20 Resistance: EM 20 Resistance: I 20 Resistance: S 20 Resistance: P 20 Evasion (%) 55 Offensive Hacking 10 Item Schematics ----------------- None Robot Schematics ------------------ None Fabricated ------------ Nothing Repaired ---------- Nothing Studied --------- None Alien Tech Used ----------------- None Achievements -------------- None Challenges ------------ None Game ------ Seed DroneZhirovDeflector Manual? 0 Play Time 00:05:58 Cumulative 39.2 hours Start 2026.02.23 @ 18:47:16 End 2026.02.26 @ 19:08:00 Sessions 3 Manual Loads 0 Difficulty Adventurer Special Mode None Game No. 52 Rogue 27 Adventurer 25 Explorer 0 Win Type - Total 0 Types 0/0/0/0/0/0/0/0/0/0 Lore% 23 Gallery% 32 Achievement% 26 Wizard Run 0 Options --------- Layout 0 ASCII 0 Keyboard 1 Movement Numpad Keybinds 0 Fullscreen 1 Font 24/Smallcaps Map View 183x50 Zoom Use 0% Tactical HUD 1 Map Filters NONE Filters NONE Steam 1 RUN: d99a1a97-1498-4420-9bfb-5a47641ef25a